Cogmind - Beta 13 @@@ ROGUE MODE // 2024.04.13 @ 16:17:12 Player: Inomamais Result: Destroyed by G-67 Veteran with Field Laser Performance ------------- Evolutions (6) 3000 Regions Visited (19) 3800 Robots Destroyed (87) 435 Value Destroyed (2226) 2226 Prototype IDs (10) 200 Alien Tech Used (0) 0 Bonus (1821) 1821 TOTAL SCORE: 11482 Bonus ------- High Alert Combat Kills 21 Entered DSFs 500 Aligned with FarCom 300 Met Warlord at Base 500 MAIN.C Attacked Warlord 500 Cogmind --------- Core Integrity 0/1150 Matter 280/300 Energy 99/100 System Corruption 9% Temperature Cool (12) Movement Core (50) Location -4/Armory Parts ------- > --- POWER (2) -------- (None) > --- PROPULSION (7) --- (None) > --- UTILITY (7) ------ Enhanced Optical Array Hacking Suite Hacking Suite Advanced Hacking Suite Improved System Shield > --- WEAPON (3) ------- (None) > --- INVENTORY (5) ---- Neutrino Core Enhanced Optical Array Improved Utility Shielding Hacking Suite Component Analysis Suite Peak State ------------ > --- POWER ------------ Neutrino Core Hybrid Antimatter Reactor > --- PROPULSION ------- Cooled VTOL Module Cooled VTOL Module Field Propulsion Drive Nuclear Pulse Array Impulse Thruster Array > --- UTILITY ---------- Advanced Cooling System Enhanced Optical Array Improved Utility Shielding Hacking Suite Hacking Suite Advanced Hacking Suite Improved System Shield > --- WEAPON ----------- Heavy Hammer > --- INVENTORY -------- Field Propulsion Drive Enhanced Optical Array Hacking Suite Component Analysis Suite [Rating: 91] Favorites ----------- Power Micro Fission Core Engine Improved Deuterium Engine Power Core Micro Fission Core Reactor Hybrid Antimatter Reactor Propulsion Xenon Bombardment Thruster Treads Advanced Treads Leg Aluminum Leg Wheel Armored Wheel Flight Unit Xenon Bombardment Thruster Utility Hacking Suite Device Advanced Cooling System Storage Large Storage Unit Processor Signal Interpreter Hackware Hacking Suite Protection Improved Utility Shielding Weapon Heavy Hammer Energy Gun Medium Laser Energy Cannon Heavy Particle Cannon Ballistic Gun Autogun Ballistic Cannon Gauss Cannon Launcher Heavy Shock Bomb Launcher Impact Weapon Heavy Hammer Build | -11 -10 -10 -9 -9 -9 -8 -8 -7 -7 -7 -6 -6 -5 -5 -5 -5 -4 -4 -4 ------- Run | Yrd Mat Min Mat Min Exi Min Mat Fac Was Fac Fac DSF Fac Upp Upp War Pro Fac Arm Slots Evolved 12 | . . . 2 . . . 2 2 . . 2 . 2 . . . . 2 . Power 1 | . . . . . . . . . . . 1 . . . . . . . . Propulsion 5 | . . . 2 . . . . . . . 1 . . . . . . 2 . Utility 5 | . . . . . . . 2 1 . . . . 2 . . . . . . Weapon 1 | . . . . . . . . 1 . . . . . . . . . . . Parts Attached 140 | 6 9 1 16 3 . . 12 24 5 9 4 2 24 5 4 3 3 7 3 Power 14 | 1 1 . 1 . . . 1 2 . 1 1 . 3 . . 1 . 1 1 Engine 8 | 1 1 . . . . . 1 2 . 1 . . 2 . . . . . . Core 5 | . . . 1 . . . . . . . 1 . 1 . . 1 . . 1 Reactor 1 | . . . . . . . . . . . . . . . . . . 1 . Propulsion 40 | 2 2 . 9 . . . 2 5 3 3 1 1 6 . . . 1 3 2 Treads 11 | 2 . . 4 . . . 2 3 . . . . . . . . . . . Leg 4 | . . . 4 . . . . . . . . . . . . . . . . Wheel 5 | . 2 . 1 . . . . 2 . . . . . . . . . . . Hover . | . . . . . . . . . . . . . . . . . . . . Flight 20 | . . . . . . . . . 3 3 1 1 6 . . . 1 3 2 Utility 49 | 1 5 . 2 . . . 4 7 2 5 2 . 12 2 1 1 2 3 . Device 21 | . . . 1 . . . 2 2 . 4 1 . 6 2 . 1 2 . . Storage 5 | 1 2 . . . . . 1 1 . . . . . . . . . . . Processor 4 | . . . 1 . . . 1 1 . . . . . . 1 . . . . Hackware 14 | . . . . . . . . 2 2 1 1 . 6 . . . . 2 . Protection 5 | . 3 . . . . . . 1 . . . . . . . . . 1 . Artifact . | . . . . . . . . . . . . . . . . . . . . Weapon 37 | 2 1 1 4 3 . . 5 10 . . . 1 3 3 3 1 . . . Energy Gun 4 | 1 1 . 2 . . . . . . . . . . . . . . . . Energy Cannon 1 | . . . . . . . . 1 . . . . . . . . . . . Ballistic Gun 7 | 1 . . 2 1 . . 1 2 . . . . . . . . . . . Ballistic Cannon 6 | . . . . 1 . . 2 3 . . . . . . . . . . . Launcher 9 | . . 1 . 1 . . 2 . . . . 1 1 1 2 . . . . Special Weapon . | . . . . . . . . . . . . . . . . . . . . Impact Weapon 10 | . . . . . . . . 4 . . . . 2 2 1 1 . . . Slashing Weapon . | . . . . . . . . . . . . . . . . . . . . Piercing Weapon . | . . . . . . . . . . . . . . . . . . . . Special Melee Weapon . | . . . . . . . . . . . . . . . . . . . . Unidentified Prototypes 2 | . . . . . . . 1 . . 1 . . . . . . . . . Parts Lost 29 | . 1 . . . . . 2 5 . 1 . 5 . . 2 . 3 7 3 Power 7 | . 1 . . . . . . 2 . . . 1 . . 1 . 1 1 . Propulsion 15 | . . . . . . . 2 2 . . . 2 . . . . 1 5 3 Utility 6 | . . . . . . . . 1 . 1 . 2 . . 1 . 1 . . Weapon 1 | . . . . . . . . . . . . . . . . . . 1 . Highest Loss Streak 10 | . 1 . . . . . 1 2 . 1 . 3 . . 2 . 3 7 10 To Critical Strikes . | . . . . . . . . . . . . . . . . . . . . Average Slot Usage (%) 90 | . 98 100 91 99 100 100 99 92 74 83 86 75 83 88 87 93 88 72 33 Engine 4 | . 14 14 4 . . . 6 7 7 7 6 6 5 5 4 . . . . Core 4 | . . . 6 11 11 11 2 . . . 6 2 4 5 5 11 10 4 . Treads 11 | . 9 . 7 44 44 44 35 18 . . . . . . . . . . . Leg 1 | . . . 18 . . . . . . . . . . . . . . . . Wheel 3 | . 18 28 10 . . . . 5 1 . . . . . . . . . . Flight 13 | . . . . . . . . . 18 30 33 28 26 29 29 29 27 25 2 Device 5 | . . . 2 . . . 8 7 1 4 6 6 9 11 6 10 11 5 . Storage 5 | . 14 14 11 11 11 11 9 7 1 . . . . . . . . . . Processor 5 | . . . 6 11 11 11 18 8 . . . . . . 3 5 5 5 5 Hackware 14 | . . . . . . . . 12 25 30 26 23 28 29 28 23 21 20 21 Protection 1 | . 12 14 1 . . . . . 7 1 . . . . . . . 4 3 Energy Gun 2 | . 14 14 11 4 . . . . . . . . . . . 4 3 . . Ballistic Gun 4 | . 14 . 9 3 11 11 9 6 1 . . . . . . . . . . Ballistic Cannon 2 | . . . . 6 11 11 8 6 1 . . . . . . . . . . Launcher 1 | . . 14 1 7 . . . . . . . 4 . 3 2 . . . . Impact Weapon 2 | . . . . . . . . 2 7 7 6 1 4 1 2 5 5 4 . Naked Turns . | . . . . . . . . . . . . . . . . . . . . Heaviest Build 66 | 11 33 31 31 35 35 35 38 66 62 15 20 23 27 28 26 28 28 33 14 Greatest Support 95 | 40 40 24 88 88 88 88 89 95 56 32 28 28 29 29 29 29 29 46 14 Greatest Overweight (x) 2 | . 1 1 2 . . . . 1 1 . . 1 1 . . . . . . Average Overweight (x) . | . . 1 . . . . . . . . . . . . . . . . . Largest Inventory Capacity 20 | 8 15 15 15 15 15 15 15 20 20 5 5 5 5 5 5 5 5 5 5 Average Capacity 9 | 7 10 15 15 15 15 15 15 15 7 5 5 5 5 5 5 5 5 5 5 Most Carried 20 | 6 15 15 15 15 15 15 15 20 20 5 4 4 5 5 5 5 5 5 5 Average Carried 9 | 3 9 14 14 14 14 15 14 14 7 4 3 2 4 4 5 3 4 4 4 Final Capacity 20 | 8 15 15 15 15 15 15 15 20 5 5 5 5 5 5 5 5 5 5 5 Final Carried 20 | 6 15 15 14 15 15 15 15 20 5 5 3 4 5 5 5 5 3 4 5 Class Distribution -------------------- 36% | Hacker-Sprinter 35% | Mutant 10% | Wizard-Sprinter 5% | Hacker-Mutant 5% | Hacker-Skirmisher 3% | Scavenger-Mutant Dominant Class ---------------- Mutant | -10/Materials Mutant | -10/Mines Scavenger-Mutant | -9/Materials Mutant | -9/Mines Mutant | -9/Exiles Mutant | -8/Mines Mutant | -8/Materials Hacker-Skirmisher | -7/Factory Hacker-Mutant | -7/Waste Hacker-Sprinter | -7/Factory Hacker-Sprinter | -6/Factory Hacker-Sprinter | -6/DSF Hacker-Sprinter | -5/Factory Wizard-Sprinter | -5/Upper Caves Wizard-Sprinter | -5/Upper Caves Hacker-Sprinter | -5/Warlord Hacker-Sprinter | -4/Proximity Caves Hacker-Sprinter | -4/Factory Hacker-Mutant | -4/Armory Resources | -11 -10 -10 -9 -9 -9 -8 -8 -7 -7 -7 -6 -6 -5 -5 -5 -5 -4 -4 -4 ----------- Run | Yrd Mat Min Mat Min Exi Min Mat Fac Was Fac Fac DSF Fac Upp Upp War Pro Fac Arm Matter Collected 2734 | 251 155 34 187 71 . . 643 450 . 213 . 23 407 117 27 73 18 65 . Remotely . | . . . . . . . . . . . . . . . . . . . . Salvage Created 2570 | . 361 20 278 49 . . 583 532 . 20 . 241 349 . 30 . . 107 . Parts 147 | . 22 2 23 4 . . 44 23 . . . 17 11 . 1 . . . . Haulers Intercepted 1 | . . . . . . . 1 . . . . . . . . . . . . Recyclers Shooed 1 | . . . . . . . 1 . . . . . . . . . . . . Parts Field Recycled . | . . . . . . . . . . . . . . . . . . . . Retrieved Matter . | . . . . . . . . . . . . . . . . . . . . Parts Self-Destructed 3 | . . . . . . . . . . . . . . . 1 . 2 . . Prevented . | . . . . . . . . . . . . . . . . . . . . Kills | -11 -10 -10 -9 -9 -9 -8 -8 -7 -7 -7 -6 -6 -5 -5 -5 -5 -4 -4 -4 ------- Run | Yrd Mat Min Mat Min Exi Min Mat Fac Was Fac Fac DSF Fac Upp Upp War Pro Fac Arm Combat Hostiles Destroyed 66 | . 10 3 8 11 . . 17 10 . . . 6 . . 1 . . . . Guns 21 | . 10 . 4 . . . 5 2 . . . . . . . . . . . Cannons 15 | . . . . 2 . . 5 8 . . . . . . . . . . . AOE 30 | . . 3 4 9 . . 7 . . . . 6 . . 1 . . . . Classes Destroyed 16 | . 3 . 3 1 . . 6 2 . . . 1 . . . . . . . Worker 9 | . . . 1 . . . 1 . . . . . 7 . . . . . . Builder 1 | . . . . . . . 1 . . . . . . . . . . . . Tunneler 1 | . . . 1 . . . . . . . . . . . . . . . . Hauler 1 | . . . . . . . 1 . . . . . . . . . . . . Recycler 2 | . . . . . . . 1 . . . . . 1 . . . . . . Mechanic 1 | . . . . . . . 1 . . . . . . . . . . . . Operator 4 | . . . . . . . . 1 . 1 . . 2 . . . . . . Watcher 9 | . 1 . . . . . 2 1 . . . . 2 . . . . 3 . Swarmer 22 | . 3 3 4 4 . . 7 . . . . . . . 1 . . . . Cutter 6 | . . . . . . . . . . . . 6 . . . . . . . Grunt 19 | . 7 . 2 . . . 5 5 . . . . . . . . . . . Duelist 1 | . . . . . . . 1 . . . . . . . . . . . . Sentry 8 | . . . 2 . . . 3 3 . . . . . . . . . . . Hunter 1 | . . . . . . . 1 . . . . . . . . . . . . Programmer 2 | . . . . . . . . 2 . . . . . . . . . . . Assembled 7 | . . . . 7 . . . . . . . . . . . . . . . Best Kill Streak 15 | . 4 3 5 5 . . 15 3 . 1 . 3 4 . 1 . . 1 . Combat Bots Only 9 | . 4 3 4 5 . . 9 3 . . . 3 . . 1 . . . . Max Kills in Single Turn 5 | . 1 3 5 4 . . 3 1 . 1 . 1 1 . 1 . . 1 . Gunslinging . | . . . . . . . . . . . . . . . . . . . . Exploded 4 | . . 3 4 4 . . 2 . . . . 1 . . 1 . . . . Melee . | . . . . . . . . . . . . . . . . . . . . Uniques/NPCs Destroyed . | . . . . . . . . . . . . . . . . . . . . Combat | -11 -10 -10 -9 -9 -9 -8 -8 -7 -7 -7 -6 -6 -5 -5 -5 -5 -4 -4 -4 -------- Run | Yrd Mat Min Mat Min Exi Min Mat Fac Was Fac Fac DSF Fac Upp Upp War Pro Fac Arm Hostile Shots Fired 497 | . 60 3 13 11 . . 69 150 1 2 . 15 13 . 9 . 12 83 56 Missed 183 | . 15 1 4 3 . . 23 56 1 2 . 11 6 . 3 . 4 35 19 Damage Taken 5477 | . 512 52 108 204 . . 667 1162 . . . 350 179 . 206 . 164 938 935 Core 1592 | . 65 6 11 38 . . 48 123 . . . 39 46 . 13 . 37 329 837 Absorbed by Shields . | . . . . . . . . . . . . . . . . . . . . Redirected to Shielding 35 | . 4 . . . . . . . . . . . . . . . . 21 10 Regen/Repaired (Parts) 161 | . . . . . . . . . . . . . 93 . . 68 . . . Core Remaining (%) 88 | 100 . 71 . . . 87 91 . . 82 . 95 . . . . 90 . . Volleys Fired 155 | . 53 1 12 10 . . 36 28 . . . 11 . . 4 . . . . Largest 3 | . 2 1 2 2 . . 2 3 . . . 1 . . 1 . . . . Hottest 151 | . 70 30 88 71 . . 73 151 . . . 36 . . 46 . . . . Shots Fired 280 | . 85 3 23 12 . . 58 84 . . . 11 . . 4 . . . . Gun 161 | . 85 2 22 2 . . 22 28 . . . . . . . . . . . Cannon 84 | . . . . 6 . . 22 56 . . . . . . . . . . . Launcher 35 | . . 1 1 4 . . 14 . . . . 11 . . 4 . . . . Special . | . . . . . . . . . . . . . . . . . . . . Kinetic 174 | . 53 . 11 8 . . 44 58 . . . . . . . . . . . Thermal 71 | . 32 2 11 . . . . 26 . . . . . . . . . . . Explosive 20 | . . 1 1 4 . . 14 . . . . . . . . . . . . Electromagnetic 15 | . . . . . . . . . . . . 11 . . 4 . . . . Robot Hit Streak 17 | . 7 1 16 4 . . 12 17 . . . 1 . . 1 . . . . Robot Miss Streak 6 | . 2 1 2 1 . . 3 2 . . . 6 . . . . . . . Penetration Max 1 | . . . . . . . . 1 . . . . . . . . . . . Secondary Targets 4 | . 3 . 1 . . . . . . . . . . . . . . . . Max Gunslinging Chain 1 | . 1 . 1 . . . . . . . . . . . . . . . . Shots Hit Robots 199 | . 60 1 19 5 . . 36 59 . 1 . 1 13 . 1 . . 3 . Core Hits 125 | . 20 3 15 15 . . 36 18 . . . 14 3 . 1 . . . . Critical Kills . | . . . . . . . . . . . . . . . . . . . . Critical Parts Destroyed 7 | . . . . . . . . 1 . . . . 5 . . . . 1 . Critical Strikes 15 | . 3 . 2 . . . 1 3 . . . . 5 . . . . 1 . Burn 5 | . 3 . 2 . . . . . . . . . . . . . . . . Destroy 1 | . . . . . . . . 1 . . . . . . . . . . . Blast 3 | . . . . . . . 1 2 . . . . . . . . . . . Smash 6 | . . . . . . . . . . . . . 5 . . . . 1 . Melee Attacks 179 | . . . . . . . . 23 . 56 . 2 66 3 2 . 3 24 . Impact 179 | . . . . . . . . 23 . 56 . 2 66 3 2 . 3 24 . Slashing . | . . . . . . . . . . . . . . . . . . . . Piercing . | . . . . . . . . . . . . . . . . . . . . Sneak Attacks 9 | . . . . . . . . . . . . . 8 . . . . 1 . Combat Hostiles . | . . . . . . . . . . . . . . . . . . . . Follow-up Attacks . | . . . . . . . . . . . . . . . . . . . . Damage Inflicted 6894 | . 577 112 384 659 . . 2101 1390 . 64 . 319 971 . 74 . . 243 . Guns 1450 | . 577 . 232 17 . . 272 352 . . . . . . . . . . . Cannons 1454 | . . . . 56 . . 360 1038 . . . . . . . . . . . Explosions 2702 | . . 112 152 576 . . 1469 . . . . 319 . . 74 . . . . Melee 1278 | . . . . . . . . . . 64 . . 971 . . . . 243 . Ramming 10 | . . . . 10 . . . . . . . . . . . . . . . Kinetic 1889 | . 265 . 85 73 . . 632 834 . . . . . . . . . . . Thermal 1015 | . 312 . 147 . . . . 556 . . . . . . . . . . . Explosive 2309 | . . 112 152 576 . . 1469 . . . . . . . . . . . . Electromagnetic 393 | . . . . . . . . . . . . 319 . . 74 . . . . Impact 1278 | . . . . . . . . . . 64 . . 971 . . . . 243 . Slashing . | . . . . . . . . . . . . . . . . . . . . Piercing . | . . . . . . . . . . . . . . . . . . . . Highest Corruption 18 | . 2 2 . . . . 1 5 14 18 . 1 1 1 1 1 1 4 9 Average Corruption 4 | . 2 2 . . . . 1 2 11 14 . 1 1 1 1 1 1 4 5 Corruption Purged 5 | . . . . . . . . . . 5 . . . . . . . . . Corruption Blocked 4 | . . . . . . . . . . . . . . . . 4 . . . Effects 95 | . 6 3 . . . . 3 16 5 47 . 1 5 . 6 . . 1 2 Message Errors 20 | . . . . . . . . 4 . 15 . . 1 . . . . . . Matter Fused 27 | . 3 . . . . . 1 4 2 13 . . 3 . 1 . . . . Heat Flow Errors 6 | . 2 1 . . . . . 1 . 1 . . . . 1 . . . . Energy Discharges 10 | . . . . . . . . 1 . 8 . . . . 1 . . . . Parts Rejected 2 | . . . . . . . . 1 . . . . . . . . . 1 . Parts Fused 1 | . . . . . . . . . . . . . . . 1 . . . . Data Loss (minor) 15 | . . . . . . . 1 3 1 4 . 1 1 . 2 . . . 2 Data Loss (major) 9 | . 1 . . . . . 1 2 . 5 . . . . . . . . . Misfires 2 | . . 2 . . . . . . . . . . . . . . . . . Misdirections 3 | . . . . . . . . . 2 1 . . . . . . . . . Overload Shots . | . . . . . . . . . . . . . . . . . . . . Overflow Damage 972 | . . . . 10 . . 201 26 . 14 . . 570 . 18 . . 133 . Projectiles 61 | . . . . . . . 35 26 . . . . . . . . . . . Explosions 194 | . . . . 10 . . 166 . . . . . . . 18 . . . . Melee 717 | . . . . . . . . . . 14 . . 570 . . . . 133 . Knockbacks 13 | . . . . . . . 1 3 . 1 . . 5 . . . . 3 . Impact 9 | . . . . . . . . . . 1 . . 5 . . . . 3 . Kinetic 4 | . . . . . . . 1 3 . . . . . . . . . . . Secondary . | . . . . . . . . . . . . . . . . . . . . Self-Inflicted Damage 374 | . . 40 . 96 . . 70 . . . . 65 . . 103 . . . . Shots 16 | . . 1 . 4 . . 3 . . . . 4 . . 4 . . . . Rammed 1 | . . . . 1 . . . . . . . . . . . . . . . Targets Rammed 1 | . . . . 1 . . . . . . . . . . . . . . . Kicked . | . . . . . . . . . . . . . . . . . . . . Crushed . | . . . . . . . . . . . . . . . . . . . . Highest Temperature 242 | . 242 174 80 28 . . 7 196 . 85 26 . . 3 207 4 . . . Average Temperature 59 | . 104 68 27 10 . . 7 96 . 39 13 . . 1 11 2 . . . Received Heat Transfer 1019 | . 258 . 39 20 . . 171 330 . . . . 27 . 9 . 18 117 30 Effects 2 | . 2 . . . . . . . . . . . . . . . . . . Energy Bleed 2 | . 2 . . . . . . . . . . . . . . . . . . Siege Activations . | . . . . . . . . . . . . . . . . . . . . Robots Corrupted . | . . . . . . . . . . . . . . . . . . . . Combat Hostiles . | . . . . . . . . . . . . . . . . . . . . Parts Fried 16 | . . . . . . . . . . 5 . . 6 . . . . 5 . Impact Corruptions 22 | . . . . . . . . . . 1 . . 17 . . . . 4 . Robots Melted . | . . . . . . . . . . . . . . . . . . . . Combat Hostiles . | . . . . . . . . . . . . . . . . . . . . Parts Melted 2 | . 2 . . . . . . . . . . . . . . . . . . Heat Transferred 2479 | . 1147 . 518 . . . . 814 . . . . . . . . . . . Parts Sabotaged . | . . . . . . . . . . . . . . . . . . . . Parts Stolen . | . . . . . . . . . . . . . . . . . . . . Parts Stripped . | . . . . . . . . . . . . . . . . . . . . Power Chain Reactions 2 | . . . . . . . . . . . . 1 . . 1 . . . . Alert | -11 -10 -10 -9 -9 -9 -8 -8 -7 -7 -7 -6 -6 -5 -5 -5 -5 -4 -4 -4 ------- Run | Yrd Mat Min Mat Min Exi Min Mat Fac Was Fac Fac DSF Fac Upp Upp War Pro Fac Arm Peak Influence 489 | . 207 159 268 152 . . 489 283 52 94 . 145 291 . . . . 242 132 Initial 205 | . . 80 61 49 . . . 205 22 36 . . 75 . . . . 187 97 Average 97 | . 100 158 149 82 . . 145 113 35 41 . 55 83 . . . . 90 106 Maximum Alert Level 2 | . 1 . 1 . . . 2 1 . . . . 1 . . . . 1 . Low Security (%) 85 | 100 84 100 61 100 . 100 65 72 100 100 100 100 96 . . . . 84 100 Level 1 13 | . 15 . 38 . . . 22 27 . . . . 3 . . . . 15 . Level 2 1 | . . . . . . . 12 . . . . . . . . . . . . Level 3 . | . . . . . . . . . . . . . . . . . . . . Level 4 . | . . . . . . . . . . . . . . . . . . . . Level 5 . | . . . . . . . . . . . . . . . . . . . . High Security . | . . . . . . . . . . . . . . . . . . . . Max Security . | . . . . . . . . . . . . . . . . . . . . Squads Dispatched 25 | . 1 1 4 1 . . 3 3 . 3 1 3 2 . . . . 2 1 Investigation 9 | . 1 . 1 1 . . 2 . . 2 1 . . . . . . 1 . Extermination 3 | . . . . . . . . 2 . 1 . . . . . . . . . Reinforcement 11 | . . . 3 . . . . 1 . . . 3 2 . . . . 1 1 Assault 1 | . . 1 . . . . . . . . . . . . . . . . . Garrison 1 | . . . . . . . 1 . . . . . . . . . . . . Intercept . | . . . . . . . . . . . . . . . . . . . . Searches Triggered . | . . . . . . . . . . . . . . . . . . . . Construction Impeded . | . . . . . . . . . . . . . . . . . . . . Haulers Reinforced . | . . . . . . . . . . . . . . . . . . . . Active Scanning Responses . | . . . . . . . . . . . . . . . . . . . . Cargo Convoy Interrupts . | . . . . . . . . . . . . . . . . . . . . Stealth | -11 -10 -10 -9 -9 -9 -8 -8 -7 -7 -7 -6 -6 -5 -5 -5 -5 -4 -4 -4 --------- Run | Yrd Mat Min Mat Min Exi Min Mat Fac Was Fac Fac DSF Fac Upp Upp War Pro Fac Arm Distress Signals 13 | . 1 . 4 . . . 2 1 . . . . 2 . . . . 3 . Communications Jammed 2 | . . . . . . . . . . . . . 2 . . . . . . Distress Signals 2 | . . . . . . . . . . . . . 2 . . . . . . Times Spotted 188 | . 18 3 7 11 . . 21 12 6 10 . 9 21 . 3 . 7 45 15 Peak Tracking Total 22 | . 6 3 4 4 . . 6 5 6 3 . 4 5 . 2 . 5 22 10 Tactical Retreats 23 | . . . . . . . 2 . . 2 . 2 5 . 1 . 2 7 2 Traps | -11 -10 -10 -9 -9 -9 -8 -8 -7 -7 -7 -6 -6 -5 -5 -5 -5 -4 -4 -4 ------- Run | Yrd Mat Min Mat Min Exi Min Mat Fac Was Fac Fac DSF Fac Upp Upp War Pro Fac Arm Traps Triggered 13 | . 2 . . . . . 1 2 . 1 . 2 4 . . . . . 1 Indirectly . | . . . . . . . . . . . . . . . . . . . . Trap Hack Attempts . | . . . . . . . . . . . . . . . . . . . . Triggered . | . . . . . . . . . . . . . . . . . . . . Disarmed . | . . . . . . . . . . . . . . . . . . . . Reprogrammed . | . . . . . . . . . . . . . . . . . . . . Reused . | . . . . . . . . . . . . . . . . . . . . Traps Extracted . | . . . . . . . . . . . . . . . . . . . . Installed . | . . . . . . . . . . . . . . . . . . . . Triggered 12 | . . . . . . . . . . . . . . . . 12 . . . Most Traps Carried 2 | . . . . . . . . . . . . 2 2 . . . . . . Machines | -11 -10 -10 -9 -9 -9 -8 -8 -7 -7 -7 -6 -6 -5 -5 -5 -5 -4 -4 -4 ---------- Run | Yrd Mat Min Mat Min Exi Min Mat Fac Was Fac Fac DSF Fac Upp Upp War Pro Fac Arm Machines Disabled 7 | . . . . . . . 4 1 . . . 1 . . . . . 1 . Max in Single Turn 3 | . . . . . . . 3 1 . . . 1 . . . . . 1 . Garrison Access 6 | . . . . . . . . . . 1 . . 4 . . . . 1 . Machines Repaired . | . . . . . . . . . . . . . . . . . . . . Machines Dismantled . | . . . . . . . . . . . . . . . . . . . . Machines Sabotaged . | . . . . . . . . . . . . . . . . . . . . Overloaded Fab Kills . | . . . . . . . . . . . . . . . . . . . . Hacking | -11 -10 -10 -9 -9 -9 -8 -8 -7 -7 -7 -6 -6 -5 -5 -5 -5 -4 -4 -4 --------- Run | Yrd Mat Min Mat Min Exi Min Mat Fac Was Fac Fac DSF Fac Upp Upp War Pro Fac Arm Machines Accessed 86 | . 6 . 5 2 . . 4 5 . 18 2 . 19 . 3 12 1 8 1 Terminals 50 | . 6 . 4 1 . . 3 5 . 11 1 . 10 . 1 . 1 6 1 Fabricators 6 | . . . . . . . . . . 3 1 . 1 . . . . 1 . Repair Stations 2 | . . . . . . . . . . . . . 2 . . . . . . Recycling Units . | . . . . . . . . . . . . . . . . . . . . Scanalyzers 5 | . . . 1 . . . . . . 2 . . 2 . . . . . . Garrison Access 8 | . . . . . . . 1 . . 2 . . 4 . . . . 1 . Total Hacks 240 | . 17 . 10 3 . . 10 11 . 65 4 . 67 . 6 21 1 24 1 Successful 129 | . 7 . 3 2 . . 3 3 . 23 4 . 43 . 6 21 1 13 . Failed 111 | . 10 . 7 1 . . 7 8 . 42 . . 24 . . . . 11 1 Catastrophic 25 | . 2 . 2 . . . 2 5 . 10 . . 3 . . . . 1 . Database Lockouts . | . . . . . . . . . . . . . . . . . . . . Manual 71 | . 7 . 3 . 1 . 1 6 . 30 . . 15 . . . . 8 . Terminals 166 | . 17 . 9 2 . . 8 11 . 53 1 . 40 . 1 . 1 22 1 Fabricators 8 | . . . . . . . . . . 3 3 . 1 . . . . 1 . Repair Stations 7 | . . . . . . . . . . . . . 7 . . . . . . Recycling Units . | . . . . . . . . . . . . . . . . . . . . Scanalyzers 18 | . . . 1 . . . . . . 4 . . 13 . . . . . . Garrison Access 14 | . . . . . . . 2 . . 5 . . 6 . . . . 1 . Terminal Hacks 84 | . 7 . 2 2 . . 3 3 . 10 1 . 19 . 6 21 1 9 . Record 29 | . . . . . . . . 1 . . . . 1 . 5 20 1 1 . Part Schematic 3 | . 1 . . . . . . . . 1 . . . . . . . 1 . Robot Analysis 3 | . 1 . . . . . . . . 1 . . . . . . . 1 . Prototype ID Bank 2 | . . . . . . . . . . 1 . . 1 . . . . . . Open Door 3 | . . . . 1 . . . . . . . . . . 1 1 . . . Open DSF 2 | . . . . . . . . . . . 1 . 1 . . . . . . Branch Access Points 5 | . 1 . . . . . . 1 . 1 . . 1 . . . . 1 . Emergency Access Points 7 | . 2 . . . . . . . . 1 . . 4 . . . . . . Machine Index 1 | . . . . . . . . . . . . . 1 . . . . . . Terminal Index 2 | . . . . . . . . . . 1 . . . . . . . 1 . Scanalyzer Index 1 | . . . . . . . . . . 1 . . . . . . . . . Garrison Index 1 | . . . . . . . . . . . . . 1 . . . . . . Unreport Threat 10 | . . . . . . . 2 1 . 2 . . 3 . . . . 2 . Locate Traps 8 | . 2 . 1 . . . . . . . . . 3 . . . . 2 . Dispatch Records 2 | . . . . 1 . . . . . . . . 1 . . . . . . Recall Reinforcements 1 | . . . 1 . . . . . . . . . . . . . . . . Registered Prototypes 2 | . . . . . . . 1 . . . . . 1 . . . . . . Zone Layout 2 | . . . . . . . . . . 1 . . 1 . . . . . . Fabricator Hacks 8 | . . . . . . . . . . 3 3 . 1 . . . . 1 . Network Status 5 | . . . . . . . . . . 2 1 . 1 . . . . 1 . Load Schematic 1 | . . . . . . . . . . . 1 . . . . . . . . Build 2 | . . . . . . . . . . 1 1 . . . . . . . . Repair Station Hacks 7 | . . . . . . . . . . . . . 7 . . . . . . Scan Component 3 | . . . . . . . . . . . . . 3 . . . . . . Repair 3 | . . . . . . . . . . . . . 3 . . . . . . Refit 1 | . . . . . . . . . . . . . 1 . . . . . . Recycling Unit Hacks . | . . . . . . . . . . . . . . . . . . . . Scanalyzer 15 | . . . 1 . . . . . . 4 . . 10 . . . . . . Insert Component 8 | . . . 1 . . . . . . 2 . . 5 . . . . . . Analyze 7 | . . . . . . . . . . 2 . . 5 . . . . . . Garrison Access Hacks 6 | . . . . . . . . . . 1 . . 4 . . . . 1 . Seal Access 6 | . . . . . . . . . . 1 . . 4 . . . . 1 . Unauthorized Hacks 9 | . . . . . . . . . . 5 . . 2 . . . . 2 . Terminals 9 | . . . . . . . . . . 5 . . 2 . . . . 2 . Assimilate 6 | . . . . . . . . . . 3 . . 1 . . . . 2 . Operators 3 | . . . . . . . . . . 2 . . 1 . . . . . . Fabricators . | . . . . . . . . . . . . . . . . . . . . Repair Stations . | . . . . . . . . . . . . . . . . . . . . Recycling Units . | . . . . . . . . . . . . . . . . . . . . Scanalyzers . | . . . . . . . . . . . . . . . . . . . . Garrison Access . | . . . . . . . . . . . . . . . . . . . . Data Cores Recovered 3 | . . . . . . . . . . 1 . . 2 . . . . . . Used . | . . . . . . . . . . . . . . . . . . . . Hacking Detections 51 | . 6 . 4 . . . 4 5 . 15 1 . 10 . . . . 5 1 Full Trace Events 5 | . . . . . . . 1 . . 2 1 . . . . . . 1 . Feedback Events 2 | . . . . . . . 1 . . 1 . . . . . . . . . Corruption 1 | . . . . . . . 1 . . . . . . . . . . . . Hackware Fried 1 | . . . . . . . . . . 1 . . . . . . . . . Feedback Blocked . | . . . . . . . . . . . . . . . . . . . . Robot Schematics Acquired . | . . . . . . . . . . . . . . . . . . . . Robots Built . | . . . . . . . . . . . . . . . . . . . . Authchips . | . . . . . . . . . . . . . . . . . . . . Time . | . . . . . . . . . . . . . . . . . . . . Total Robot Build Rating . | . . . . . . . . . . . . . . . . . . . . Part Schematics Acquired 9 | . 1 . . . . . . . . 3 . . 4 . . . . 1 . Parts Built 2 | . . . . . . . . . . 2 . . . . . . . . . Authchips . | . . . . . . . . . . . . . . . . . . . . Time 157 | . . . . . . . . . . 58 99 . . . . . . . . Total Part Build Rating 14 | . . . . . . . . . . 14 . . . . . . . . . Parts Repaired 3 | . . . . . . . . . . . . . 3 . . . . . . Time 184 | . . . . . . . . . . . . . 184 . . . . . . Parts Recycled . | . . . . . . . . . . . . . . . . . . . . Recycled Matter . | . . . . . . . . . . . . . . . . . . . . Retrieved Matter . | . . . . . . . . . . . . . . . . . . . . Retrieved Components . | . . . . . . . . . . . . . . . . . . . . Parts Scanalyzed 6 | . . . . . . . . . . 2 . . 4 . . . . . . Part Schematics Acquired 6 | . . . . . . . . . . 2 . . 4 . . . . . . Parts Damaged 1 | . . . . . . . . . . . . . 1 . . . . . . Bothacking | -11 -10 -10 -9 -9 -9 -8 -8 -7 -7 -7 -6 -6 -5 -5 -5 -5 -4 -4 -4 ------------ Run | Yrd Mat Min Mat Min Exi Min Mat Fac Was Fac Fac DSF Fac Upp Upp War Pro Fac Arm Used RIF Installer . | . . . . . . . . . . . . . . . . . . . . Robots Hacked . | . . . . . . . . . . . . . . . . . . . . Non-combat . | . . . . . . . . . . . . . . . . . . . . Combat . | . . . . . . . . . . . . . . . . . . . . Robot Hacks Applied . | . . . . . . . . . . . . . . . . . . . . Relay Couplers Released . | . . . . . . . . . . . . . . . . . . . . Fabnet Peak Effective % . | . . . . . . . . . . . . . . . . . . . . Robots Rewired . | . . . . . . . . . . . . . . . . . . . . Allies Hacked . | . . . . . . . . . . . . . . . . . . . . Hacks Repelled . | . . . . . . . . . . . . . . . . . . . . Allies | -11 -10 -10 -9 -9 -9 -8 -8 -7 -7 -7 -6 -6 -5 -5 -5 -5 -4 -4 -4 -------- Run | Yrd Mat Min Mat Min Exi Min Mat Fac Was Fac Fac DSF Fac Upp Upp War Pro Fac Arm Total Allies 5 | . . 1 . . . . . . . 2 . . 1 . . . . 1 . Largest Group 1 | . . 1 . . . . . . . 1 . . 1 . . . . 1 . Highest-Rated Group 31 | . . 31 . . . . . . . 10 . . 26 . . . . 10 . Highest-Rated Ally 31 | . . 31 . . . . . . . 10 . . 26 . . . . 10 . Total Orders 30 | . . . . . . . . . . . . . . 19 10 . 1 . . FOLLOW 1 | . . . . . . . . . . . . . . 1 . . . . . EXPLORE 19 | . . . . . . . . . . . . . . 11 7 . 1 . . RETURN 10 | . . . . . . . . . . . . . . 7 3 . . . . Ally Attacks . | . . . . . . . . . . . . . . . . . . . . Total Damage . | . . . . . . . . . . . . . . . . . . . . Kills . | . . . . . . . . . . . . . . . . . . . . Allies Corrupted . | . . . . . . . . . . . . . . . . . . . . Allies Melted . | . . . . . . . . . . . . . . . . . . . . Intel | -11 -10 -10 -9 -9 -9 -8 -8 -7 -7 -7 -6 -6 -5 -5 -5 -5 -4 -4 -4 ------- Run | Yrd Mat Min Mat Min Exi Min Mat Fac Was Fac Fac DSF Fac Upp Upp War Pro Fac Arm Robot Analysis Total 3 | . 1 . . . . . . . . 1 . . . . . . . 1 . Derelict Logs Recovered 6 | . . 1 . . . . . . . . . . . 1 3 . 1 . . Drone Launches 19 | . . . . . . . . . . . . . . 11 7 . 1 . . Drone Recoveries 16 | . . . . . . . . . . . . . . 9 7 . . . . Exploration | -11 -10 -10 -9 -9 -9 -8 -8 -7 -7 -7 -6 -6 -5 -5 -5 -5 -4 -4 -4 ------------- Run | Yrd Mat Min Mat Min Exi Min Mat Fac Was Fac Fac DSF Fac Upp Upp War Pro Fac Arm Turns Passed 11425 | 95 765 232 799 802 398 134 1026 1472 50 1153 27 97 1529 443 584 894 218 632 75 Spaces Moved 12758 | 58 515 212 602 520 272 93 426 862 98 2123 85 141 2821 360 729 828 572 1324 117 Core 96 | 11 . . . . . . . . . . . . . . . . . . 85 Treads 2046 | 47 128 . 80 520 272 93 426 480 . . . . . . . . . . . Legs 262 | . . . 262 . . . . . . . . . . . . . . . . Wheels 1245 | . 387 212 260 . . . . 382 4 . . . . . . . . . . Hover . | . . . . . . . . . . . . . . . . . . . . Flight 9109 | . . . . . . . . . 94 2123 85 141 2821 360 729 828 572 1324 32 Fastest Speed 22 | 50 90 105 86 145 145 145 145 100 34 29 26 26 27 27 27 27 22 26 35 Average Speed 56 | 139 111 105 115 145 145 145 145 131 37 29 26 27 27 27 27 27 27 27 46 Slowest Speed 260 | 160 160 105 260 145 145 145 152 156 115 34 26 100 100 27 27 27 28 32 50 Overloaded Moves 20 | . . . . . . . . . . . . . . . . . 12 8 . Propulsion Burnouts . | . . . . . . . . . . . . . . . . . . . . Robots Hopped 58 | . . . . . . . . . . 14 . . 19 . 2 . 1 20 2 Cave-ins Triggered 2 | . . . . . . . . 1 . . . . . . . . . 1 . Exploration Rate (%) 53 | 3 84 59 59 82 61 30 37 21 77 40 4 84 61 68 96 81 86 26 15 Regions Visited 19 Branch Regions 9 Pre-discovered Areas 2 | . . 1 . . . . . . . . . . . . . . 1 . . Known Exits Taken 9 | . 1 . 1 1 1 1 1 . . . 1 . 1 . . . . 1 . Unknown Exits Taken 7 | 1 . 1 . . . . . . . 1 . . . 1 1 1 1 . . Scrap Searched 11 | . . 2 . 2 . . . . . . . . . 1 4 . 2 . . Spaces Dug 128 | . . . . 4 . . . 16 . 47 . 1 37 3 1 . 1 18 . Terrain Destroyed 251 | . . 9 7 49 . . 47 26 . 47 . 5 37 3 2 . 1 18 . Melee 124 | . . . . . . . . 16 . 47 . 1 37 3 1 . 1 18 . Projectile 26 | . . . . 4 . . 12 10 . . . . . . . . . . . AOE 101 | . . 9 7 45 . . 35 . . . . 4 . . 1 . . . . Terrain Rammed . | . . . . . . . . . . . . . . . . . . . . Walls Destroyed . | . . . . . . . . . . . . . . . . . . . . Machines Disabled . | . . . . . . . . . . . . . . . . . . . . Actions | -11 -10 -10 -9 -9 -9 -8 -8 -7 -7 -7 -6 -6 -5 -5 -5 -5 -4 -4 -4 --------- Run | Yrd Mat Min Mat Min Exi Min Mat Fac Was Fac Fac DSF Fac Upp Upp War Pro Fac Arm Total 16382 | 69 635 220 690 556 277 92 780 1099 114 2548 88 183 3441 698 1104 1497 629 1526 136 Wait 2953 | . 34 5 24 17 . . 290 116 . 360 . . 507 327 367 663 47 180 16 Move 12632 | 57 514 211 601 519 271 92 425 862 97 2097 84 140 2783 359 724 827 569 1286 114 Hop 50 | . . . . . . . . . . 11 . . 18 . 2 . 1 17 1 Pick Up 111 | 6 14 1 16 3 3 . 8 25 3 6 . 2 13 2 . 3 . 6 . Fast Attach 52 | 6 4 . 3 1 . . 1 5 2 7 . . 16 . 1 . 2 2 2 Attach 31 | . 1 . 2 . . . 5 6 3 1 2 1 2 1 . 2 1 3 1 Detach 10 | . . . . . . . 2 1 . . . . 1 . . . 2 2 2 Swap 57 | . 4 1 11 2 . . 6 13 . 1 2 1 6 4 3 1 . 2 . Drop 114 | . 11 1 21 3 3 . 7 20 9 9 . . 18 2 1 1 4 4 . Fire 155 | . 53 1 12 10 . . 36 28 . . . 11 . . 4 . . . . Melee 179 | . . . . . . . . 23 . 56 . 2 66 3 2 . 3 24 . Ram . | . . . . . . . . . . . . . . . . . . . . Kick . | . . . . . . . . . . . . . . . . . . . . Crush 1 | . . . . 1 . . . . . . . . . . . . . . . Escape Stasis 37 | . . . . . . . . . . . . 26 11 . . . . . . Rewire . | . . . . . . . . . . . . . . . . . . . . Trap . | . . . . . . . . . . . . . . . . . . . . Miscellaneous . | . . . . . . . . . . . . . . . . . . . . Route ------- -11/Scrapyard -10/Materials (discovered 2 exits: *Mat / *Min) -10/Mines -9/Materials (discovered 2 exits: *Mat / *Min) -9/Mines (discovered 3 exits: *Mat x2 / *Exi) -9/Exiles -8/Mines -8/Materials -7/Factory (discovered 3 exits: *Fac / Low x2) -7/Waste -7/Factory (discovered 4 exits: *Fac x2 / Low x2) -6/Factory -6/DSF -5/Factory (discovered 3 exits: *Fac / *Upp x2) -5/Upper Caves -5/Upper Caves (discovered 2 exits: *Fac / *War) -5/Warlord -4/Proximity Caves -4/Factory (discovered 7 exits: *Res x2 / Upp x2 / *Ext x2 / *Arm) -4/Armory History --------- Turn | Location | Event 5 | -11/Scrapyard | Discovered new exit (range 16) 96 | -11/Scrapyard | Entered Materials 148 | -10/Materials | Identified exit to Mines 306 | -10/Materials | Build established: Mutant 393 | -10/Materials | Discovered new exit (range 8) 861 | -10/Materials | Entered Mines 927 | -10/Mines | Met a Derelict testing a Signal Generator 1011 | -10/Mines | Found a damaged Exp. Sensor Array with a note attached 1013 | -10/Mines | Found Prototype Device 1016 | -10/Mines | Learned Materials security intel 1017 | -10/Mines | Learned location of Storage (-8) 1083 | -10/Mines | Discovered new exit (range 11) 1093 | -10/Mines | Entered Materials 1093 | -9/Materials | Evolved 2 slots: Propulsion x2 1112 | -9/Materials | Identified Exp. Sensor Array 1392 | -9/Materials | Discovered new exit (range 4) 1401 | -9/Materials | Identified exit to Materials 1657 | -9/Materials | Build established: Scavenger-Mutant 1707 | -9/Materials | Discovered new exit (range 11) 1722 | -9/Materials | Identified exit to Mines 1892 | -9/Materials | Entered Mines 1942 | -9/Mines | Discovered exit to Materials (range 6) 2062 | -9/Mines | Build established: Mutant 2224 | -9/Mines | Met a Derelict shopkeep closing up shop 2277 | -9/Mines | A weapon hastily lodged in a ceiling crevice suddenly fell to the ground 2344 | -9/Mines | Assembled infested the area 2647 | -9/Mines | Discovered exit to Materials (range 9) 2687 | -9/Mines | Deemed a non-threat by the Exiles lab entrance 2688 | -9/Mines | Discovered new exit (range 5) 2693 | -9/Mines | Identified exit to Exiles 2694 | -9/Mines | Entered Exiles 2734 | -9/Exiles | Met 8R-AWN 2757 | -9/Exiles | Met EX-HEX 2803 | -9/Exiles | Met EX-BIN 2829 | -9/Exiles | Aligned with FarCom system 2831 | -9/Exiles | Given EX-Vault access code 2864 | -9/Exiles | Opened EX-Vault 2900 | -9/Exiles | Warned to stay clear of 0b10 Research branches 2952 | -9/Exiles | Found Prototype Processor 3024 | -9/Exiles | Met EX-DEC 3073 | -9/Exiles | Discovered new exit (range 14) 3090 | -9/Exiles | Identified exit to Mines 3092 | -9/Exiles | Left Exiles lab with Modified TNC 3092 | -9/Exiles | Entered Mines 3219 | -8/Mines | Discovered exit to Materials (range 6) 3226 | -8/Mines | Entered Materials 3226 | -8/Materials | Evolved 2 slots: Utility x2 3226 | -8/Materials | Identified Modified TNC 3885 | -8/Materials | Garrison activated, responded to threat 3946 | -8/Materials | Destroyed 9 combat bots 4004 | -8/Materials | Discovered new exit (range 12) 4111 | -8/Materials | Identified exit to Factory 4252 | -8/Materials | Entered Factory 4252 | -7/Factory | Evolved 2 slots: Utility x1, Weapon x1 5050 | -7/Factory | Build established: Hacker-Skirmisher 5469 | -7/Factory | Identified exit to Lower Caves 5485 | -7/Factory | Crushed by falling debris 5691 | -7/Factory | Discovered new exit (range 4) 5724 | -7/Factory | Sucked down chute 5724 | -7/Factory | Entered Waste 5739 | -7/Waste | EMP discharged 5739 | -7/Waste | System corruption reached 10% 5748 | -7/Waste | Spotted C-40 Crusher 5751 | -7/Waste | Spotted C-40 Crusher 5758 | -7/Waste | Spotted C-40 Crusher 5759 | -7/Waste | Spotted C-40 Crusher 5763 | -7/Waste | Spotted C-40 Crusher 5764 | -7/Waste | Spotted C-40 Crusher 5770 | -7/Waste | Discovered new exit (range 12) 5774 | -7/Waste | Entered Factory 6071 | -7/Factory | Build established: Hacker-Sprinter 6103 | -7/Factory | Discovered new exit (range 5) 6351 | -7/Factory | Hacking Suite fried by hacking feedback 6406 | -7/Factory | Fabricated Imp. Force Field? 6908 | -7/Factory | Discovered new exit (range 16) 6927 | -7/Factory | Entered another Factory area 6927 | -6/Factory | Evolved 2 slots: Power x1, Propulsion x1 6954 | -6/Factory | Identified exit to DSF 6954 | -6/Factory | Entered DSF 6971 | -6/DSF | Additional patrols routed to DSF 7029 | -6/DSF | Lost 3 parts (1p2n) 7043 | -6/DSF | Discovered new exit (range 11) 7051 | -6/DSF | Entered Factory 7051 | -5/Factory | Evolved 2 slots: Utility x2 7092 | -5/Factory | Identified exit to Upper Caves 7212 | -5/Factory | Repaired Xenon Bombardment Thruster 7283 | -5/Factory | Repaired Cld. VTOL Module 7596 | -5/Factory | Repaired Cld. VTOL Module 7816 | -5/Factory | Discovered new exit (range 13) 8580 | -5/Factory | Entered Upper Caves 8660 | -5/Upper Caves | Build established: Wizard-Sprinter 9003 | -5/Upper Caves | Learned Factory emergency access door positions 9019 | -5/Upper Caves | Encountered a Warlord checkpoint 9019 | -5/Upper Caves | Discovered new exit (range 9) 9023 | -5/Upper Caves | Entered another Upper Caves area 9049 | -5/Upper Caves | Discovered new exit (range 23) 9147 | -5/Upper Caves | Learned 8 Factory zone layouts 9147 | -5/Upper Caves | Learned Extension stockpile data 9147 | -5/Upper Caves | Learned Research security intel 9147 | -5/Upper Caves | Learned Armory garrison access intel 9158 | -5/Upper Caves | Learned 4 Factory zone layouts 9177 | -5/Upper Caves | Learned Factory trap positions 9529 | -5/Upper Caves | Learned Factory emergency access door positions 9537 | -5/Upper Caves | Attracted the attention of an 0b10 checkpoint 9593 | -5/Upper Caves | Discovered new exit (range 9) 9607 | -5/Upper Caves | Entered Warlord 9620 | -5/Warlord | System corruption cleaned by Quarantine Array 9682 | -5/Warlord | Visited the Vortex Lab 9704 | -5/Warlord | Warlord's base attacked by MAIN.C 9713 | -5/Warlord | Learned Quarantine trap positions 9713 | -5/Warlord | Learned Armory stockpile data 9713 | -5/Warlord | Learned 4 Research zone layouts 9713 | -5/Warlord | Learned 4 Quarantine zone layouts 9713 | -5/Warlord | Learned 4 Command zone layouts 9713 | -5/Warlord | Learned Testing security intel 9713 | -5/Warlord | Learned Armory terminal intel 9713 | -5/Warlord | Learned Armory fabricator intel 9723 | -5/Warlord | Met Warlord 9901 | -5/Warlord | Build established: Hacker-Sprinter 10054 | -5/Warlord | Warlord forces counterattacked 10379 | -5/Warlord | Warlord base infiltrated, sounded retreat 10380 | -5/Warlord | Enhanced Grunt warped into view 10380 | -5/Warlord | Enhanced Grunt warped into view 10380 | -5/Warlord | Enhanced Grunt warped into view 10380 | -5/Warlord | Enhanced Demolisher warped into view 10380 | -5/Warlord | Enhanced Demolisher warped into view 10380 | -5/Warlord | Enhanced Demolisher warped into view 10434 | -5/Warlord | Lost 4 allies 10498 | -5/Warlord | Discovered new exit (range 12) 10501 | -5/Warlord | Entered Proximity Caves 10677 | -4/Proximity Caves | Learned location of Testing (-3) 10710 | -4/Proximity Caves | Spotter reported a threat 10711 | -4/Proximity Caves | Lost 3 parts (1p1n1u) 10715 | -4/Proximity Caves | Spotted B-86 Titan 10717 | -4/Proximity Caves | Discovered new exit (range 6) 10719 | -4/Proximity Caves | Entered Factory 10719 | -4/Factory | Evolved 2 slots: Propulsion x2 10720 | -4/Factory | Identified exit to Research 10720 | -4/Factory | Identified exit to Extension 10721 | -4/Factory | Loaded intel: 89 trap records 10750 | -4/Factory | Identified exit to Upper Caves 10750 | -4/Factory | Identified exit to Armory 10795 | -4/Factory | Discovered exit to Research (range 18) 11182 | -4/Factory | Spotted B-86 Titan 11335 | -4/Factory | Crushed by falling debris 11351 | -4/Factory | Entered Armory 11353 | -4/Armory | Loaded intel: 12 terminal locations 11354 | -4/Armory | Loaded intel: 8 fabricator locations 11379 | -4/Armory | Core integrity fell below 50% 11410 | -4/Armory | Core integrity fell below 20% 11419 | -4/Armory | Spotted B-86 Titan 11426 | -4/Armory | Destroyed by G-67 Veteran with Field Laser Last Messages --------------- Loading Armory terminal intel (x12)... Loading Armory fabricator intel (x8)... 11355_ ALERT: Suspicious intruders detected, dispatching Cutter reinforcements to area. 11357_ Connecting with Terminal... 11358_ Penetrated by Slug. 11358_ Terminal disabled. 11374_ Slug penetrates Wall. 11374_ Cld. VTOL Module destroyed. 11374_ Knocked back. 11377_ System corrupted: Component data lost. 11392_ Penetrated by Slug. 11396_ Acquired Impulse Thruster. 11401_ System corrupted: Component data lost. 11402_ Slug penetrates Wall. 11404_ Impulse Thruster destroyed. 11404_ Critical hit (Blast). 11409_ Triggered EM Surge Trap. 11409_ The floor emits a surge of raw power. 11409_ System corrupted (+5). Map ----- +----------------------------------------------------+ | | | | | | | | | | | | | | | | | | | ?????????????????????????????????????????????????? | | ???????????????????????????????????????????######? | | ????????????????????###???????????????????# #? | | ????????????????????#BB?????############### #? | | ????????#############BB###### + #? | | ????????# # #? | | ????????# # #? | | ????????+ !! s #? | | ????????? """"""" !! # #? | | ?????????? """"""" ! ##/####? | | ?????????# """"""" s s #? | | ??????? # "T" s #? | | ???????? w #? | | ?????????? ## | | ???????????????## | | ????????????????# | | ????????????????# @ | | ????????????????####### ###### | | ??????????????????????# #????# | | ???????????p??????????#ggg#????# | | ??????????????????????#####????# | | ???????????????????????????????# ## | | ???????????????????????????????##################? | | ?????????????????????????????????????????????????? | | ?????????????????????????????????????????????????? | | ?????"""?????????????????????????????????????????? | | ??????T"?????????????????????????????????????????? | | ?????"""?????????????????????????????????????????? | | ?????????????????????????????????????????????????? | | ?????????????????????????????????????????????????? | | ?????????????????????????????????????????????????? | | ?????????????????????????????????????????????????? | | ?????????????????????????????????????????????????? | | ?????????????????????????????????????????????????? | | ?????????????????????????????????????????????????? | | ?????????????????????????????????????????????????? | | ?????????????????????????????????????????????????? | | ?????????????????????????????????????????????????? | | ?????????????????????????????????????????????????? | | ?????????????????????????????????????????????????? | | ?????????????????????????????????????????????????? | +----------------------------------------------------+ Best States ------------- Heat Dissipation 74 Coolant Potential 65 Energy Generation 29 Energy Capacity 1315 Matter Stores 300 Matter Capacity 300 Sight Range 22 Terrain Scan Density 10 Jamming Range 14 Additional Mass Support 9 Armor Coverage 225 Core Shielding 20 Utility Shielding 66 Evasion (%) 74 Recoil Reduction 4 Offensive Hacking 34 Defensive Hacking 32 Item Schematics ----------------- Grenade Launcher | -10/Materials | Hacked Cld. Ion Engine | -7/Factory | Hacked System Shield | -7/Factory | Scanalyzed Adv. Weight Redist. System | -7/Factory | Scanalyzed Adv. System Restoration Module | -5/Factory | Scanalyzed Shock Bomb Launcher | -5/Factory | Scanalyzed Hacking Suite | -5/Factory | Scanalyzed Component Analysis Suite | -5/Factory | Scanalyzed Q-thruster | -4/Factory | Hacked Robot Schematics ------------------ None Fabricated ------------ Imp. Force Field | x2 | -7/Factory | Preloaded Alien Tech Used ----------------- None Achievements -------------- Cya! Challenges ------------ None Game ------ Seed AntimissileVisualProtomatter Manual? 0 Play Time 03:43:53 Cumulative 84.6 hours Start 2024.04.12 @ 17:10:08 End 2024.04.13 @ 16:17:12 Sessions 5 Manual Loads 0 Difficulty Rogue Special Mode None Game No. 49 Rogue 48 Adventurer 1 Explorer 0 Win Type - Total 1 Types 1/0/0/0/0/0/0/0/0 Lore% 46 Gallery% 40 Achievement% 37 Wizard Run 0 Options --------- Layout 0 ASCII 1 Keyboard 1 Movement Numpad Keybinds 0 Fullscreen 1 Font 18/SmallcapsGlow Map View 76x50 Zoom Use 0% Tactical HUD 1 Map Filters NONE Filters NONE Steam 1 RUN: 5ba25c85-4618-4af1-80ab-a8309c453ce8